[Event "36th Zalakaros Festival 2017"]
[Site "Zalakaros"]
[Date "2017.05.21"]
[Round "4"]
[White "Rakesh Kumar Jena"]
[Black "Jakab, Bela"]
[Result "1-0"]
[ECO "C07"]
[WhiteElo "2288"]
[BlackElo "2216"]
[Annotator "NA"]
[PlyCount "63"]
[EventDate "2017.??.??"]
[EventType "swiss"]
[EventCountry "HUN"]
[SourceTitle "playchess.com"]
[Source "ChessBase"]
[SourceQuality "1"]
[TimeControl "40/5400+30:1800+30"]

1. e4 {[%emt 0:07:16]} e6 {[%emt 0:00:36]} 2. d4 {[%emt 0:00:09]} d5 {[%emt 0:00:04]} 3. Nd2 {[%emt 0:00:04]} c5 {[%emt 0:00:04]} 4. exd5 {[%emt 0:00:07]} Qxd5 {[%emt 0:00:06]} 5. Ngf3 {[%emt 0:00:05]} cxd4 {[%emt 0:00:09]} 6. Bc4 {[%emt 0:00:05]} Qd6 {[%emt 0:00:05]} 7. O-O {[%emt 0:00:23]} Nf6 {[%emt 0:00:05]} 8. Nb3 {[%emt 0:00:07]} Nc6 {[%emt 0:00:06]} 9. Nbxd4 {[%emt 0:00:54]} Nxd4 {[%emt 0:01:15]} 10. Nxd4 {[%emt 0:00:05]} a6 {[%emt 0:00:06]} 11. Be3 {[%emt 0:02:08]} Qc7 {[%emt 0:01:29]} 12. Bb3 {[%emt 0:00:22]} Bd6 {[%emt 0:01:01]} 13. h3 {[%emt 0:00:07]} O-O {[%emt 0:00:39]} 14. Qe2 {[%emt 0:06:33]} e5 {[%emt 0:23:04]} 15. Nf3 {[%emt 0:00:15]} Bf5 {[%emt 0:00:07]} 16. Rad1 {[%emt 0:00:24]} Bg6 {[%emt 0:05:19]} 17. Nh4 {[%emt 0:03:43]} Bh5 {[%emt 0:04:41]} 18. g4 {[%emt 0:00:06]} Bg6 {[%emt 0:00:04]} 19. Nxg6 {[%emt 0:00:05]} hxg6 {[%emt 0:00:04]} 20. Qd3 {[%emt 0:00:03]} Bc5 {[%emt 0:04:30]} 21. Bxc5 {[%emt 0:00:50]} Qxc5 {[%emt 0:00:05]} 22. Qxg6 {[%emt 0:00:11]} a5 {[%emt 0:00:36]} 23. g5 {[%emt 0:00:46]} Nh7 {[%emt 0:02:26]} 24. Rd7 {[%emt 0:01:13]} e4 {[%emt 0:07:31]} 25. Bxf7+ {[%emt 0:01:11]} Kh8 {[%emt 0:00:04]} 26. Bd5 {[%emt 0:00:19]} Rg8 {[%emt 0:00:25]} 27. Bxg8 {[%emt 0:01:35]} Rxg8 {[%emt 0:00:08]} 28. Qxe4 {[%emt 0:01:00]} Qxg5+ {[%emt 0:00:40]} 29. Qg4 {[%emt 0:00:07]} Qb5 {[%emt 0:01:22]} 30. b3 {[%emt 0:00:41]} Nf6 {[%emt 0:01:41]} 31. Qh4+ {[%emt 0:00:07]} Nh7 {[%emt 0:00:04]} 32. Rd8 {[%emt 0:00:20]} 1-0

[Event "36th Zalakaros Festival 2017"]
[Site "Zalakaros"]
[Date "2017.05.21"]
[Round "4"]
[White "Ganaus, Hannes"]
[Black "Ugroczky, Peter"]
[Result "0-1"]
[ECO "D35"]
[WhiteElo "2271"]
[BlackElo "2185"]
[Annotator "NA"]
[PlyCount "76"]
[EventDate "2017.??.??"]
[EventType "swiss"]
[EventCountry "HUN"]
[SourceTitle "playchess.com"]
[Source "ChessBase"]
[SourceQuality "1"]
[TimeControl "40/5400+30:1800+30"]

1. d4 {[%emt 0:00:05]} d5 {[%emt 0:00:41]} 2. c4 {[%emt 0:00:14]} e6 {[%emt 0:00:06]} 3. Nc3 {[%emt 0:00:37]} Nf6 {[%emt 0:00:15]} 4. cxd5 {[%emt 0:00:26]} exd5 {[%emt 0:00:06]} 5. Bg5 {[%emt 0:00:11]} c6 {[%emt 0:00:35]} 6. e3 {[%emt 0:00:28]} Qb6 {[%emt 0:01:01]} 7. Qd2 {[%emt 0:02:13]} Ne4 {[%emt 0:06:02]} 8. Nxe4 {[%emt 0:01:05]} dxe4 {[%emt 0:00:05]} 9. Ne2 {[%emt 0:00:08]} Bb4 {[%emt 0:04:29]} 10. Nc3 {[%emt 0:00:03]} Be6 {[%emt 0:01:45]} 11. Be2 {[%emt 0:00:30]} O-O {[%emt 0:03:37]} 12. O-O {[%emt 0:00:21]} f5 {[%emt 0:04:32]} 13. a3 {[%emt 0:16:59]} Bxc3 {[%emt 0:06:09]} 14. bxc3 {[%emt 0:00:44]} Nd7 {[%emt 0:01:19]} 15. c4 {[%emt 0:07:11]} Nf6 {[%emt 0:02:54]} 16. Rab1 {[%emt 0:03:34]} Qc7 {[%emt 0:02:20]} 17. Rfd1 {[%emt 0:03:29]} Rad8 {[%emt 0:05:26]} 18. Qb4 {[%emt 0:12:41]} b6 {[%emt 0:03:15]} 19. Rbc1 {[%emt 0:01:58]} c5 {[%emt 0:02:24]} 20. Qa4 {[%emt 0:08:56]} cxd4 {[%emt 0:01:35]} 21. Bf4 {[%emt 0:00:10]} Qc5 {[%emt 0:02:34]} 22. exd4 {[%emt 0:01:07]} Rxd4 {[%emt 0:00:37]} 23. Rxd4 {[%emt 0:00:22]} Qxd4 {[%emt 0:00:07]} 24. Qxa7 {[%emt 0:00:17]} Qb2 {[%emt 0:03:07]} 25. Kf1 {[%emt 0:03:17]} Ng4 {[%emt 0:07:13]} 26. Qe7 {[%emt 0:03:43]} Nxh2+ 27. Ke1 {[%emt 0:00:29]} Bf7 {[%emt 0:04:33]} 28. Qb4 {[%emt 0:01:44]} Qf6 {[%emt 0:02:44]} 29. Bxh2 {[%emt 0:01:40]} Qh6 {[%emt 0:00:06]} 30. Rd1 {[%emt 0:12:12]} Qxh2 {[%emt 0:01:32]} 31. Rd7 {[%emt 0:02:27]} Qg1+ {[%emt 0:01:45]} 32. Kd2 {[%emt 0:02:48]} Qxf2 {[%emt 0:01:21]} 33. Qe7 {[%emt 0:02:08]} g6 {[%emt 0:05:14]} 34. a4 {[%emt 0:03:06]} Qxg2 {[%emt 0:03:56]} 35. c5 {[%emt 0:02:34]} bxc5 {[%emt 0:01:02]} 36. Kd1 {[%emt 0:05:50]} Qg1+ {[%emt 0:01:10]} 37. Kd2 {[%emt 0:00:02]} e3+ {[%emt 0:01:10]} 38. Kc2 {[%emt 0:02:30]} Qa1 {[%emt 0:01:46]} 0-1

[Event "36th Zalakaros Festival 2017"]
[Site "Zalakaros"]
[Date "2017.05.21"]
[Round "4"]
[White "Sankalp Gupta"]
[Black "Raja Harshit"]
[Result "0-1"]
[ECO "C45"]
[WhiteElo "2269"]
[BlackElo "2334"]
[Annotator "NA"]
[PlyCount "68"]
[EventDate "2017.??.??"]
[EventType "swiss"]
[EventCountry "HUN"]
[SourceTitle "playchess.com"]
[Source "ChessBase"]
[SourceQuality "1"]
[TimeControl "40/5400+30:1800+30"]

1. e4 {[%emt 0:07:53]} e5 {[%emt 0:00:32]} 2. Nf3 {[%emt 0:00:24]} Nc6 {[%emt 0:00:07]} 3. d4 {[%emt 0:00:02]} exd4 {[%emt 0:00:06]} 4. Nxd4 {[%emt 0:00:03]} Nf6 {[%emt 0:00:10]} 5. Nxc6 {[%emt 0:00:02]} bxc6 {[%emt 0:00:06]} 6. e5 {[%emt 0:00:02]} Qe7 {[%emt 0:00:07]} 7. Qe2 {[%emt 0:00:02]} Nd5 {[%emt 0:00:07]} 8. c4 {[%emt 0:00:01]} Nb6 {[%emt 0:00:07]} 9. Nc3 {[%emt 0:00:11]} Qe6 {[%emt 0:00:41]} 10. Qe4 {[%emt 0:00:16]} g6 {[%emt 0:00:15]} 11. Bd3 {[%emt 0:05:39]} Bg7 {[%emt 0:00:26]} 12. f4 {[%emt 0:00:03]} O-O {[%emt 0:00:08]} 13. O-O {[%emt 0:00:07]} f5 {[%emt 0:00:02]} 14. Qe2 {[%emt 0:07:56]} d6 {[%emt 0:00:08]} 15. c5 {[%emt 0:01:45]} Nd5 {[%emt 0:00:49]} 16. Nxd5 {[%emt 0:01:24]} cxd5 {[%emt 0:00:05]} 17. cxd6 {[%emt 0:19:37]} cxd6 {[%emt 0:00:09]} 18. Re1 {[%emt 0:01:38]} dxe5 {[%emt 0:00:07]} 19. fxe5 {[%emt 0:00:02]} f4 {[%emt 0:00:05]} 20. Bd2 {[%emt 0:04:06]} Bb7 {[%emt 0:01:42]} 21. Bc3 {[%emt 0:10:04]} Rf7 {[%emt 0:09:39]} 22. Qf2 {[%emt 0:03:08]} f3 {[%emt 0:12:28]} 23. g3 {[%emt 0:02:21]} d4 {[%emt 0:03:46]} 24. Bd2 {[%emt 0:08:06]} Bd5 {[%emt 0:15:15]} 25. b3 {[%emt 0:03:59]} Raf8 {[%emt 0:00:23]} 26. Rac1 {[%emt 0:00:44]} Rc8 {[%emt 0:09:03]} 27. Rcd1 {[%emt 0:13:40]} h6 {[%emt 0:11:13]} 28. Bc1 {[%emt 0:04:08]} g5 {[%emt 0:06:27]} 29. Bb2 {[%emt 0:02:35]} Bxe5 {[%emt 0:00:54]} 30. Be4 {[%emt 0:04:27]} Bxe4 {[%emt 0:02:04]} 31. Rxe4 {[%emt 0:00:01]} Qf5 {[%emt 0:00:09]} 32. Rde1 {[%emt 0:00:44]} Rc2 {[%emt 0:00:43]} 33. Rxe5 {[%emt 0:00:48]} Rxf2 {[%emt 0:00:07]} 34. Rxf5 {[%emt 0:00:02]} Rg2+ {[%emt 0:00:06]} 0-1

[Event "36th Zalakaros Festival 2017"]
[Site "Zalakaros"]
[Date "2017.05.21"]
[Round "4"]
[White "Varga, Klara"]
[Black "Gara, Ticia"]
[Result "1/2-1/2"]
[ECO "A36"]
[WhiteElo "2240"]
[BlackElo "2329"]
[Annotator "NA"]
[PlyCount "32"]
[EventDate "2017.??.??"]
[EventType "swiss"]
[EventCountry "HUN"]
[SourceTitle "playchess.com"]
[Source "ChessBase"]
[SourceQuality "1"]
[TimeControl "40/5400+30:1800+30"]

1. c4 {[%emt 0:05:41]} c5 {[%emt 0:01:09]} 2. g3 {[%emt 0:00:05]} g6 {[%emt 0:00:59]} 3. Bg2 {[%emt 0:00:07]} Bg7 {[%emt 0:00:08]} 4. Nc3 {[%emt 0:00:05]} Nc6 {[%emt 0:00:43]} 5. e3 {[%emt 0:00:06]} e6 {[%emt 0:01:04]} 6. Nge2 {[%emt 0:00:06]} Nge7 {[%emt 0:00:23]} 7. O-O {[%emt 0:00:06]} O-O {[%emt 0:00:29]} 8. d4 {[%emt 0:00:06]} cxd4 {[%emt 0:02:22]} 9. Nxd4 {[%emt 0:00:02]} Nxd4 {[%emt 0:00:12]} 10. exd4 {[%emt 0:00:09]} d5 {[%emt 0:00:21]} 11. cxd5 {[%emt 0:00:17]} Nxd5 {[%emt 0:00:05]} 12. Nxd5 {[%emt 0:00:06]} exd5 {[%emt 0:00:03]} 13. Be3 {[%emt 0:00:07]} Be6 {[%emt 0:01:22]} 14. Qb3 {[%emt 0:00:07]} Qd7 {[%emt 0:00:55]} 15. Rfc1 {[%emt 0:00:07]} Rfc8 {[%emt 0:06:51]} 16. a4 {[%emt 0:00:13]} Bf6 {[%emt 0:14:23]} 1/2-1/2

[Event "36th Zalakaros Festival 2017"]
[Site "Zalakaros"]
[Date "2017.05.21"]
[Round "4"]
[White "Szukics, Adam"]
[Black "Tompa, Janos"]
[Result "1-0"]
[ECO "B40"]
[WhiteElo "2229"]
[BlackElo "2392"]
[Annotator "NA"]
[PlyCount "57"]
[EventDate "2017.??.??"]
[EventType "swiss"]
[EventCountry "HUN"]
[SourceTitle "playchess.com"]
[Source "ChessBase"]
[SourceQuality "1"]
[TimeControl "40/5400+30:1800+30"]

1. e4 {[%emt 0:01:10]} c5 {[%emt 0:00:48]} 2. Nf3 {[%emt 0:00:05]} e6 {[%emt 0:00:10]} 3. Nc3 {[%emt 0:00:11]} Nc6 {[%emt 0:04:35]} 4. Bb5 {[%emt 0:00:06]} Nge7 {[%emt 0:01:03]} 5. O-O {[%emt 0:00:12]} a6 {[%emt 0:00:08]} 6. Bxc6 {[%emt 0:00:05]} Nxc6 {[%emt 0:02:04]} 7. d4 {[%emt 0:00:38]} cxd4 {[%emt 0:00:26]} 8. Nxd4 {[%emt 0:00:04]} d6 {[%emt 0:03:52]} 9. Nxc6 {[%emt 0:04:01]} bxc6 {[%emt 0:00:21]} 10. Qg4 {[%emt 0:00:08]} e5 {[%emt 0:19:33]} 11. Qg3 {[%emt 0:03:10]} Be6 {[%emt 0:08:24]} 12. Be3 {[%emt 0:02:46]} Qc7 {[%emt 0:03:00]} 13. Rad1 {[%emt 0:02:42]} f6 {[%emt 0:01:11]} 14. h4 {[%emt 0:09:41]} g6 {[%emt 0:04:46]} 15. f4 {[%emt 0:05:38]} Be7 {[%emt 0:00:35]} 16. Na4 {[%emt 0:07:48]} Rb8 {[%emt 0:04:52]} 17. b3 {[%emt 0:00:28]} Rb4 {[%emt 0:04:02]} 18. fxe5 {[%emt 0:11:55]} fxe5 {[%emt 0:02:04]} 19. c4 {[%emt 0:11:35]} Bxc4 {[%emt 0:01:42]} 20. bxc4 {[%emt 0:00:09]} Rxa4 {[%emt 0:00:02]} 21. Bh6 {[%emt 0:02:01]} Qd7 {[%emt 0:14:44]} 22. Qb3 {[%emt 0:12:09]} c5 {[%emt 0:01:29]} 23. Qb8+ {[%emt 0:04:44]} Qd8 {[%emt 0:00:45]} 24. Qb7 {[%emt 0:00:11]} Qd7 {[%emt 0:05:20]} 25. Qa8+ {[%emt 0:01:19]} Qd8 {[%emt 0:08:50]} 26. Qd5 {[%emt 0:00:50]} Qc7 {[%emt 0:02:49]} 27. Bg7 {[%emt 0:01:13]} Rf8 {[%emt 0:01:07]} 28. Bxf8 {[%emt 0:00:07]} Bxf8 {[%emt 0:00:05]} 29. Qa8+ {[%emt 0:00:08]} 1-0

[Event "36th Zalakaros Festival 2017"]
[Site "Zalakaros"]
[Date "2017.05.21"]
[Round "4"]
[White "Havanecz, Bianka"]
[Black "Cuhendi, Sean Winshand"]
[Result "0-1"]
[ECO "D00"]
[WhiteElo "2210"]
[BlackElo "2407"]
[Annotator "NA"]
[PlyCount "96"]
[EventDate "2017.??.??"]
[EventType "swiss"]
[EventCountry "HUN"]
[SourceTitle "playchess.com"]
[Source "ChessBase"]
[SourceQuality "1"]
[TimeControl "40/5400+30:1800+30"]

1. d4 {[%emt 0:00:03]} d5 {[%emt 0:01:26]} 2. Bf4 {[%emt 0:00:05]} Nf6 {[%emt 0:00:09]} 3. e3 {[%emt 0:00:10]} c5 {[%emt 0:00:03]} 4. c3 {[%emt 0:00:06]} Nc6 {[%emt 0:00:04]} 5. Nd2 {[%emt 0:00:09]} Bf5 {[%emt 0:02:39]} 6. Ngf3 {[%emt 0:00:56]} Qb6 {[%emt 0:04:27]} 7. Qb3 {[%emt 0:01:18]} c4 {[%emt 0:00:32]} 8. Qxb6 {[%emt 0:00:36]} axb6 {[%emt 0:00:17]} 9. a3 {[%emt 0:13:24]} h6 {[%emt 0:01:48]} 10. h3 {[%emt 0:01:11]} b5 {[%emt 0:00:18]} 11. Rc1 {[%emt 0:00:14]} Nd7 {[%emt 0:00:19]} 12. Nb1 {[%emt 0:08:01]} f6 {[%emt 0:13:46]} 13. Be2 {[%emt 0:01:52]} Nb6 {[%emt 0:05:32]} 14. Bd1 {[%emt 0:04:04]} g5 {[%emt 0:00:52]} 15. Bg3 {[%emt 0:02:42]} Na4 {[%emt 0:00:30]} 16. Bc2 {[%emt 0:02:34]} Be4 {[%emt 0:01:02]} 17. Nfd2 {[%emt 0:04:52]} Bxg2 {[%emt 0:06:18]} 18. Rh2 {[%emt 0:00:06]} Be4 {[%emt 0:00:02]} 19. Nxe4 {[%emt 0:00:09]} dxe4 {[%emt 0:00:03]} 20. Bxe4 {[%emt 0:00:13]} Nxb2 {[%emt 0:00:14]} 21. f3 {[%emt 0:03:01]} Na4 {[%emt 0:00:04]} 22. Bg6+ {[%emt 0:05:47]} Kd8 {[%emt 0:03:43]} 23. e4 {[%emt 0:00:43]} e6 {[%emt 0:00:40]} 24. h4 {[%emt 0:02:06]} Ke7 {[%emt 0:01:54]} 25. hxg5 {[%emt 0:01:32]} Rg8 {[%emt 0:00:16]} 26. Bh5 {[%emt 0:01:31]} Rxg5 {[%emt 0:01:08]} 27. Bf4 {[%emt 0:01:32]} Rg1+ {[%emt 0:00:14]} 28. Kd2 {[%emt 0:01:05]} Rxc1 {[%emt 0:00:06]} 29. Kxc1 {[%emt 0:00:02]} e5 {[%emt 0:00:15]} 30. Be3 {[%emt 0:00:48]} exd4 {[%emt 0:00:34]} 31. cxd4 {[%emt 0:00:18]} Rd8 {[%emt 0:00:03]} 32. Rd2 {[%emt 0:01:47]} Na5 {[%emt 0:00:07]} 33. Rd1 {[%emt 0:04:44]} Nb3+ {[%emt 0:08:01]} 34. Kc2 {[%emt 0:00:06]} Na1+ {[%emt 0:01:19]} 35. Kc1 {[%emt 0:00:05]} c3 {[%emt 0:02:59]} 36. Rd3 {[%emt 0:01:10]} Rc8 {[%emt 0:02:15]} 37. d5 {[%emt 0:01:01]} Kd8 {[%emt 0:01:45]} 38. d6 {[%emt 0:03:03]} Rc6 {[%emt 0:01:09]} 39. Nxc3 {[%emt 0:07:14]} Rxc3+ {[%emt 0:01:11]} 40. Rxc3 {[%emt 0:00:00]} Nxc3 {[%emt 0:00:02]} 41. Bb6+ {[%emt 0:00:11]} Kd7 {[%emt 0:00:05]} 42. Bc7 {[%emt 0:00:04]} Bxd6 {[%emt 0:01:52]} 43. Bxd6 {[%emt 0:00:06]} Kxd6 {[%emt 0:00:03]} 44. Kb2 {[%emt 0:00:05]} Ne2 {[%emt 0:00:02]} 45. Be8 {[%emt 0:02:39]} Nf4 {[%emt 0:00:31]} 46. Bxb5 {[%emt 0:01:27]} h5 {[%emt 0:00:07]} 47. Bf1 {[%emt 0:00:15]} h4 {[%emt 0:00:04]} 48. Kxa1 {[%emt 0:00:29]} h3 {[%emt 0:00:15]} 0-1

[Event "36th Zalakaros Festival 2017"]
[Site "Zalakaros"]
[Date "2017.05.21"]
[Round "4"]
[White "Szente Varga, Fruzsina"]
[Black "Szalanczy, Emil"]
[Result "1/2-1/2"]
[ECO "B53"]
[WhiteElo "2190"]
[BlackElo "2230"]
[Annotator "NA"]
[PlyCount "97"]
[EventDate "2017.??.??"]
[EventType "swiss"]
[EventCountry "HUN"]
[SourceTitle "playchess.com"]
[Source "ChessBase"]
[SourceQuality "1"]
[TimeControl "40/5400+30:1800+30"]

1. e4 {[%emt 0:00:03]} c5 {[%emt 0:01:00]} 2. Nf3 {[%emt 0:00:11]} d6 {[%emt 0:00:31]} 3. d4 {[%emt 0:00:12]} cxd4 {[%emt 0:00:03]} 4. Qxd4 {[%emt 0:00:07]} Nf6 {[%emt 0:00:25]} 5. Bg5 {[%emt 0:00:47]} Nc6 {[%emt 0:00:05]} 6. Bb5 {[%emt 0:00:14]} Qa5+ {[%emt 0:02:04]} 7. Nc3 {[%emt 0:00:06]} Rb8 {[%emt 0:02:05]} 8. Bxf6 {[%emt 0:31:44]} gxf6 {[%emt 0:00:13]} 9. Qd5 {[%emt 0:00:11]} Qb6 {[%emt 0:07:44]} 10. Na4 {[%emt 0:08:34]} Qc7 {[%emt 0:01:13]} 11. Nd4 {[%emt 0:00:48]} Bd7 {[%emt 0:00:18]} 12. O-O-O {[%emt 0:02:27]} a6 {[%emt 0:05:02]} 13. Be2 {[%emt 0:03:17]} e6 {[%emt 0:06:53]} 14. Qh5 {[%emt 0:09:21]} Rc8 {[%emt 0:02:53]} 15. Nc3 {[%emt 0:02:36]} Qb6 {[%emt 0:08:14]} 16. Nb3 {[%emt 0:02:47]} Qxf2 {[%emt 0:05:42]} 17. Rhf1 {[%emt 0:00:45]} Qe3+ {[%emt 0:00:03]} 18. Kb1 {[%emt 0:00:06]} Qg5 {[%emt 0:00:17]} 19. Qf3 {[%emt 0:01:54]} Be7 {[%emt 0:00:52]} 20. Qf2 {[%emt 0:03:36]} h5 {[%emt 0:07:31]} 21. h4 {[%emt 0:02:24]} Qe5 {[%emt 0:00:56]} 22. g4 {[%emt 0:01:47]} hxg4 {[%emt 0:01:30]} 23. Bxg4 {[%emt 0:00:05]} Na5 {[%emt 0:02:07]} 24. Nxa5 {[%emt 0:04:27]} Qxa5 {[%emt 0:00:15]} 25. h5 {[%emt 0:00:52]} Rc5 {[%emt 0:05:15]} 26. Bf3 {[%emt 0:03:16]} Kd8 {[%emt 0:02:42]} 27. Qg1 {[%emt 0:04:33]} Rg5 {[%emt 0:00:25]} 28. Qa7 {[%emt 0:00:13]} Qc7 {[%emt 0:03:37]} 29. Ne2 {[%emt 0:05:13]} Bc8 {[%emt 0:00:37]} 30. Qe3 {[%emt 0:01:06]} Qc5 {[%emt 0:00:44]} 31. Qd2 {[%emt 0:00:30]} Kc7 {[%emt 0:00:58]} 32. Rh1 {[%emt 0:05:13]} Rh6 {[%emt 0:00:48]} 33. Nf4 {[%emt 0:00:23]} Kb8 {[%emt 0:01:02]} 34. Nh3 {[%emt 0:01:18]} Rgxh5 {[%emt 0:02:37]} 35. Bxh5 {[%emt 0:00:03]} Rxh5 {[%emt 0:00:08]} 36. Nf4 {[%emt 0:02:05]} Rxh1 {[%emt 0:04:11]} 37. Rxh1 {[%emt 0:00:03]} Bd7 {[%emt 0:00:11]} 38. Nd3 {[%emt 0:02:26]} Qb6 {[%emt 0:03:10]} 39. a3 {[%emt 0:01:52]} Bc6 {[%emt 0:01:40]} 40. Rh7 {[%emt 0:00:00]} Qg1+ {[%emt 0:02:12]} 41. Ka2 {[%emt 0:02:13]} d5 {[%emt 0:07:15]} 42. Rxf7 {[%emt 0:02:09]} dxe4 {[%emt 0:04:42]} 43. Rxe7 {[%emt 0:11:24]} exd3 {[%emt 0:00:36]} 44. Qxd3 {[%emt 0:00:16]} Qc5 {[%emt 0:01:03]} 45. Rf7 {[%emt 0:03:11]} f5 {[%emt 0:00:57]} 46. c4 {[%emt 0:02:06]} Be4 {[%emt 0:05:27]} 47. Qd8+ {[%emt 0:01:35]} Ka7 {[%emt 0:00:16]} 48. Rc7 {[%emt 0:00:15]} Qg1 {[%emt 0:04:01]} 49. Rc8 {[%emt 0:07:00]} 1/2-1/2

[Event "36th Zalakaros Festival 2017"]
[Site "Zalakaros"]
[Date "2017.05.21"]
[Round "4"]
[White "Karacsonyi, Gellert"]
[Black "Szabo, Marton Mihaly"]
[Result "1/2-1/2"]
[ECO "B40"]
[WhiteElo "2189"]
[BlackElo "2298"]
[Annotator "NA"]
[PlyCount "33"]
[EventDate "2017.??.??"]
[EventType "swiss"]
[EventCountry "HUN"]
[SourceTitle "playchess.com"]
[Source "ChessBase"]
[SourceQuality "1"]
[TimeControl "40/5400+30:1800+30"]

1. e4 {[%emt 0:00:17]} c5 {[%emt 0:00:46]} 2. Nf3 e6 {[%emt 0:00:21]} 3. d4 {[%emt 0:00:11]} cxd4 {[%emt 0:00:18]} 4. Nxd4 {[%emt 0:00:02]} Bc5 {[%emt 0:00:28]} 5. Nb3 {[%emt 0:00:15]} Be7 {[%emt 0:00:44]} 6. Nc3 {[%emt 0:01:57]} d6 {[%emt 0:00:41]} 7. Bd3 {[%emt 0:00:25]} a6 {[%emt 0:01:07]} 8. O-O {[%emt 0:00:10]} Nd7 {[%emt 0:00:55]} 9. f4 {[%emt 0:00:52]} Ngf6 {[%emt 0:00:33]} 10. Qe2 {[%emt 0:00:17]} Qc7 {[%emt 0:00:45]} 11. Bd2 {[%emt 0:02:27]} h5 {[%emt 0:06:28]} 12. Rae1 {[%emt 0:01:33]} b5 {[%emt 0:15:44]} 13. e5 {[%emt 0:10:19]} dxe5 {[%emt 0:08:47]} 14. fxe5 {[%emt 0:00:55]} Ng4 {[%emt 0:02:06]} 15. Qf3 {[%emt 0:47:17]} Qa7+ {[%emt 0:04:50]} 16. Be3 {[%emt 0:05:29]} Nxe3 {[%emt 0:05:30]} 17. Qxe3 {[%emt 0:01:34]} 1/2-1/2

[Event "36th Zalakaros Festival 2017"]
[Site "Zalakaros"]
[Date "2017.05.21"]
[Round "4"]
[White "Hradeczky, Tamas"]
[Black "Krykun, Yuriy"]
[Result "0-1"]
[ECO "D85"]
[WhiteElo "2146"]
[BlackElo "2308"]
[Annotator "NA"]
[PlyCount "80"]
[EventDate "2017.??.??"]
[EventType "swiss"]
[EventCountry "HUN"]
[SourceTitle "playchess.com"]
[Source "ChessBase"]
[SourceQuality "1"]
[TimeControl "40/5400+30:1800+30"]

1. d4 {[%emt 0:03:17]} Nf6 {[%emt 0:00:33]} 2. c4 {[%emt 0:00:22]} g6 {[%emt 0:00:16]} 3. Nc3 {[%emt 0:00:26]} d5 {[%emt 0:00:11]} 4. cxd5 {[%emt 0:00:40]} Nxd5 {[%emt 0:00:03]} 5. Bd2 {[%emt 0:00:41]} Bg7 {[%emt 0:00:55]} 6. e4 {[%emt 0:00:36]} Nxc3 {[%emt 0:00:37]} 7. Bxc3 {[%emt 0:00:09]} O-O {[%emt 0:00:04]} 8. Qd2 {[%emt 0:04:41]} Nc6 {[%emt 0:02:27]} 9. d5 {[%emt 0:02:31]} Ne5 {[%emt 0:01:46]} 10. f4 {[%emt 0:10:40]} Ng4 {[%emt 0:01:19]} 11. Bxg7 {[%emt 0:01:35]} Kxg7 {[%emt 0:00:05]} 12. Nf3 {[%emt 0:04:56]} Nf6 {[%emt 0:09:51]} 13. Bd3 {[%emt 0:02:00]} c6 {[%emt 0:02:44]} 14. dxc6 {[%emt 0:03:41]} Qb6 {[%emt 0:00:41]} 15. c7 {[%emt 0:09:13]} Bd7 {[%emt 0:14:29]} 16. Qf2 {[%emt 0:07:45]} Qxc7 {[%emt 0:02:48]} 17. Ne5 {[%emt 0:07:37]} Qa5+ {[%emt 0:04:26]} 18. Qd2 {[%emt 0:01:26]} Qb6 {[%emt 0:01:27]} 19. Qf2 {[%emt 0:01:57]} Qb4+ {[%emt 0:00:50]} 20. Qd2 {[%emt 0:00:33]} Qd6 {[%emt 0:14:18]} 21. Nxd7 {[%emt 0:01:52]} Qxd7 {[%emt 0:07:20]} 22. e5 {[%emt 0:01:41]} Nh5 {[%emt 0:04:41]} 23. f5 {[%emt 0:06:29]} Qd4 {[%emt 0:02:45]} 24. O-O-O {[%emt 0:02:13]} Qxe5 {[%emt 0:02:31]} 25. Rhe1 {[%emt 0:00:51]} Qc7+ {[%emt 0:00:53]} 26. Qc3+ {[%emt 0:01:01]} Qxc3+ {[%emt 0:00:08]} 27. bxc3 {[%emt 0:00:14]} Kf6 {[%emt 0:05:44]} 28. fxg6 {[%emt 0:00:56]} hxg6 {[%emt 0:00:23]} 29. Re4 {[%emt 0:00:43]} e6 {[%emt 0:01:45]} 30. Rb4 {[%emt 0:00:39]} b6 {[%emt 0:00:33]} 31. g4 {[%emt 0:01:27]} Ng7 {[%emt 0:00:36]} 32. h4 {[%emt 0:00:35]} Rac8 {[%emt 0:00:47]} 33. Kb2 {[%emt 0:00:53]} Rc5 {[%emt 0:01:34]} 34. Rf1+ {[%emt 0:00:19]} Ke7 {[%emt 0:00:08]} 35. Rbf4 {[%emt 0:00:49]} f5 {[%emt 0:00:44]} 36. h5 {[%emt 0:00:54]} gxh5 {[%emt 0:00:22]} 37. gxf5 {[%emt 0:01:05]} Nxf5 {[%emt 0:01:24]} 38. Rh1 {[%emt 0:00:59]} Ng3 {[%emt 0:00:17]} 39. Rxf8 {[%emt 0:00:39]} Kxf8 {[%emt 0:00:01]} 40. Rh3 {[%emt 0:00:00]} Rg5 {[%emt 0:00:08]} 0-1

[Event "36th Zalakaros Festival 2017"]
[Site "Zalakaros"]
[Date "2017.05.22"]
[Round "5"]
[White "Tompa, Janos"]
[Black "Szente Varga, Fruzsina"]
[Result "1-0"]
[ECO "C31"]
[WhiteElo "2392"]
[BlackElo "2190"]
[Annotator "NA"]
[PlyCount "53"]
[EventDate "2017.??.??"]
[EventType "swiss"]
[EventCountry "HUN"]
[SourceTitle "playchess.com"]
[Source "ChessBase"]
[SourceQuality "1"]
[TimeControl "40/5400+30:1800+30"]

1. f4 {[%emt 0:00:03]} e5 {[%emt 0:02:09]} 2. e4 {[%emt 0:00:15]} d5 {[%emt 0:00:04]} 3. exd5 {[%emt 0:00:22]} exf4 {[%emt 0:00:06]} 4. Nf3 {[%emt 0:02:11]} Bd6 {[%emt 0:01:45]} 5. Bb5+ {[%emt 0:01:18]} c6 {[%emt 0:02:18]} 6. dxc6 {[%emt 0:00:30]} bxc6 {[%emt 0:00:19]} 7. Be2 {[%emt 0:02:51]} Ne7 {[%emt 0:00:24]} 8. O-O {[%emt 0:00:45]} O-O {[%emt 0:00:15]} 9. Nc3 {[%emt 0:01:05]} Bg4 {[%emt 0:05:54]} 10. d4 {[%emt 0:22:46]} f6 {[%emt 0:00:31]} 11. Ne1 {[%emt 0:04:05]} Bxe2 {[%emt 0:05:36]} 12. Qxe2 $14 {[%emt 0:01:26]} g5 {[%emt 0:05:02]} 13. Qe6+ {[%emt 0:08:00]} Kg7 {[%emt 0:00:06]} 14. Ne4 {[%emt 0:00:11]} Bc7 {[%emt 0:00:16]} 15. Nf3 {[%emt 0:00:58]} Ng6 {[%emt 0:29:59]} 16. Re1 {[%emt 0:05:51]} g4 {[%emt 0:06:45]} 17. Qxg4 {[%emt 0:00:55]} f5 {[%emt 0:00:12]} 18. Qh5 {[%emt 0:00:05]} fxe4 {[%emt 0:00:46]} 19. Ng5 {[%emt 0:00:10]} Qxd4+ {[%emt 0:08:52]} 20. Be3 {[%emt 0:00:27]} Qe5 {[%emt 0:00:37]} 21. Qxh7+ {[%emt 0:01:16]} Kf6 {[%emt 0:00:04]} 22. Bxf4 {[%emt 0:04:26]} Qxf4 {[%emt 0:10:50]} 23. Nxe4+ Ke6 {[%emt 0:00:45]} 24. Qxg6+ {[%emt 0:10:37]} Kd5 {[%emt 0:00:18]} 25. Nc3+ {[%emt 0:04:41]} Kc5 {[%emt 0:00:23]} 26. b4+ {[%emt 0:00:20]} Kb6 {[%emt 0:00:44]} 27. Nd5+ {[%emt 0:00:13]} 1-0